Cogmind - Beta 14 @@@ ROGUE MODE // 2025.03.27 @ 21:48:48 Player: Foreecro Result: Destroyed by Y-45 Defender with Beam Rifle Performance ------------- Evolutions (1) 500 Regions Visited (3) 600 Robots Destroyed (34) 170 Value Destroyed (840) 840 Prototype IDs (0) 0 Alien Tech Used (0) 0 Bonus (2) 2 TOTAL SCORE: 2112 Bonus ------- High Alert Combat Kills 2 Cogmind --------- Core Integrity 0/400 Matter 260/300 Energy 99/100 System Corruption 0% Temperature Cool (9) Movement Core (200) Ox3 Location -9/Materials Parts ------- > --- POWER (2) -------- (None) > --- PROPULSION (3) --- (None) > --- UTILITY (2) ------ Small Storage Unit Visual Processing Unit > --- WEAPON (2) ------- Slug Cannon > --- INVENTORY (8) ---- Improved Heat Sink Signal Interpreter Medium Armor Plating Peak State ------------ > --- POWER ------------ Light Ion Engine > --- PROPULSION ------- Wheel > --- UTILITY ---------- Improved Heat Sink Visual Processing Unit > --- WEAPON ----------- Particle Cannon Slug Cannon > --- INVENTORY -------- Medium Armor Plating Medium Armor Plating Small Laser Particle Cannon Grenade Launcher [Rating: 13] Favorites ----------- Power Ion Engine Engine Ion Engine Propulsion Aluminum Leg Treads Light Treads Leg Aluminum Leg Wheel Wheel Utility Visual Processing Unit Device Improved Heat Sink Storage Small Storage Unit Processor Visual Processing Unit Protection Medium Armor Plating Weapon Particle Cannon Energy Gun Small Laser Energy Cannon Particle Cannon Ballistic Gun Assault Rifle Ballistic Cannon Slug Cannon Launcher Grenade Launcher Build | -11 -10 -10 -9 ------- Run | Yrd Mat Min Mat Slots Evolved 2 | . . . 2 Power 1 | . . . 1 Propulsion 1 | . . . 1 Utility . | . . . . Weapon . | . . . . Parts Attached 47 | 7 20 11 9 Power 7 | 2 4 1 . Engine 7 | 2 4 1 . Core . | . . . . Reactor . | . . . . Propulsion 9 | 2 2 1 4 Treads 1 | . . . 1 Leg 5 | 2 . . 3 Wheel 3 | . 2 1 . Hover . | . . . . Flight . | . . . . Utility 7 | . 4 2 1 Device 1 | . . 1 . Storage 1 | . . . 1 Processor 1 | . 1 . . Hackware . | . . . . Protection 4 | . 3 1 . Artifact . | . . . . Weapon 24 | 3 10 7 4 Energy Gun 7 | 2 3 1 1 Energy Cannon 6 | . 2 3 1 Ballistic Gun 3 | 1 1 . 1 Ballistic Cannon 2 | . . 1 1 Launcher 6 | . 4 2 . Special Weapon . | . . . . Impact Weapon . | . . . . Slashing Weapon . | . . . . Piercing Weapon . | . . . . Special Melee Weapon . | . . . . Unidentified Prototypes . | . . . . Parts Lost 12 | . . 5 7 Power 2 | . . 2 . Propulsion 5 | . . 2 3 Utility . | . . . . Weapon 5 | . . 1 4 Highest Loss Streak 6 | . . 3 6 To Critical Strikes 1 | . . . 1 Average Slot Usage (%) 70 | . 73 77 59 Engine 9 | . 14 10 . Leg 11 | . 16 . 14 Wheel 9 | . 11 13 2 Device 1 | . . 6 . Storage 2 | . . . 10 Processor 6 | . . 14 11 Protection 2 | . 2 4 . Energy Gun 7 | . 10 2 7 Energy Cannon 8 | . 2 19 9 Ballistic Gun 4 | . 8 . 2 Launcher 3 | . 6 2 . Peak Build Rating 13 | 5 11 13 11 Average Rating 7 | 3 5 9 9 On Entrance 6 | . 5 11 8 Naked Turns . | . . . . Heaviest Build 24 | 9 24 20 12 Greatest Support 23 | 20 20 20 23 Greatest Overweight (x) 3 | . 1 3 3 Average Overweight (x) . | . . 1 . Largest Inventory Capacity 8 | 5 5 5 8 Average Capacity 5 | 5 5 5 7 Most Carried 7 | 5 5 5 7 Average Carried 4 | 3 4 3 4 Final Capacity 8 | 5 5 5 8 Final Carried 5 | 5 3 3 3 Class Distribution -------------------- 97% | Mutant Dominant Class ---------------- Mutant | -10/Materials Mutant | -10/Mines Mutant | -9/Materials Resources | -11 -10 -10 -9 ----------- Run | Yrd Mat Min Mat Matter Collected 952 | 285 262 78 327 Remotely . | . . . . Salvage Created 1006 | 69 472 78 387 Parts 64 | 5 25 2 32 Haulers Intercepted . | . . . . Recyclers Shooed 3 | . 2 . 1 Parts Field Recycled . | . . . . Retrieved Matter . | . . . . Parts Self-Destructed . | . . . . Prevented . | . . . . Kills | -11 -10 -10 -9 ------- Run | Yrd Mat Min Mat Combat Hostiles Destroyed 22 | 1 7 4 10 Guns 6 | 1 4 . 1 Cannons 11 | . . 2 9 AOE 5 | . 3 2 . Classes Destroyed 7 | 2 3 . 2 Worker 4 | 1 3 . . Recycler 4 | . 3 . 1 Operator 1 | . 1 . . Watcher 3 | . 2 . 1 Swarmer 4 | . . . 4 Grunt 17 | 1 7 4 5 Sentry 1 | . . . 1 Best Kill Streak 8 | 1 8 2 2 Combat Bots Only 5 | 1 5 2 2 Max Kills in Single Turn 2 | 1 2 2 1 Gunslinging . | . . . . Exploded 2 | . 1 2 . Melee . | . . . . Uniques/NPCs Destroyed . | . . . . Combat | -11 -10 -10 -9 -------- Run | Yrd Mat Min Mat Hostile Shots Fired 240 | 5 26 55 154 Missed 71 | 1 9 13 48 Damage Taken 1981 | 45 202 620 1114 Core 556 | 23 22 97 414 Absorbed by Shields . | . . . . Regen/Repaired (Parts) 53 | . 53 . . Core Remaining (%) 66 | 90 . 43 . Volleys Fired 89 | 5 33 22 29 Largest 2 | 2 2 2 2 Hottest 136 | 60 136 136 108 Shots Fired 154 | 10 57 34 53 Gun 79 | 10 43 2 24 Cannon 55 | . 4 22 29 Launcher 20 | . 10 10 . Special . | . . . . Kinetic 42 | 5 16 7 14 Thermal 82 | . 26 17 39 Explosive 20 | . 10 10 . Electromagnetic 10 | 5 5 . . Robot Hit Streak 12 | 2 12 3 5 Robot Miss Streak 5 | 2 5 3 5 Penetration Max . | . . . . Secondary Targets . | . . . . Shots Hit Robots 72 | 5 25 13 29 Core Hits 58 | 3 29 12 14 Critical Kills . | . . . . Critical Parts Destroyed . | . . . . Critical Strikes . | . . . . Melee Attacks . | . . . . Impact . | . . . . Slashing . | . . . . Piercing . | . . . . Sneak Attacks . | . . . . Combat Hostiles . | . . . . Follow-up Attacks . | . . . . Damage Inflicted 2380 | 65 1242 529 544 Guns 533 | 65 303 12 153 Cannons 674 | . 41 242 391 Explosions 1173 | . 898 275 . Melee . | . . . . Ramming . | . . . . Kinetic 319 | 39 83 79 118 Thermal 895 | . 294 175 426 Explosive 1081 | . 806 275 . Electromagnetic 85 | 26 59 . . Impact . | . . . . Slashing . | . . . . Piercing . | . . . . Highest Corruption 2 | . 2 2 . Average Corruption 2 | . 2 2 . Corruption Purged . | . . . . Corruption Blocked . | . . . . Effects 4 | . 2 2 . Matter Fused 2 | . 2 . . Heat Flow Errors 1 | . . 1 . Parts Rejected 1 | . . 1 . Overload Shots . | . . . . Overflow Damage 33 | . 8 25 . Projectiles . | . . . . Explosions 33 | . 8 25 . Melee . | . . . . Knockbacks 1 | . . 1 . Impact . | . . . . Kinetic 1 | . . 1 . Secondary . | . . . . Self-Inflicted Damage 54 | . . 54 . Shots 2 | . . 2 . Rammed . | . . . . Targets Rammed . | . . . . Kicked . | . . . . Crushed . | . . . . Highest Temperature 386 | 24 152 386 93 Average Temperature 98 | 12 51 218 33 Received Heat Transfer 720 | 24 111 333 252 Effects 4 | . . 4 . Shutdowns 1 | . . 1 . Energy Bleed 1 | . . 1 . Interference 1 | . . 1 . Matter Decay 1 | . . 1 . Siege Activations . | . . . . Robots Corrupted . | . . . . Combat Hostiles . | . . . . Parts Fried . | . . . . Impact Corruptions . | . . . . Robots Melted . | . . . . Combat Hostiles . | . . . . Parts Melted 3 | . 1 1 1 Heat Transferred 1793 | . 668 321 804 Parts Sabotaged . | . . . . Parts Stolen . | . . . . Parts Stripped . | . . . . Power Chain Reactions 1 | . 1 . . Alert | -11 -10 -10 -9 ------- Run | Yrd Mat Min Mat Peak Influence 403 | 25 333 174 403 Initial 67 | . 16 60 67 Average 139 | 6 165 126 177 Maximum Alert Level 2 | . 1 . 2 Low Security (%) 75 | 100 59 100 67 Level 1 23 | . 40 . 32 Level 2 . | . . . . Level 3 . | . . . . Level 4 . | . . . . Level 5 . | . . . . High Security . | . . . . Max Security . | . . . . Squads Dispatched 4 | . 1 . 3 Investigation 2 | . 1 . 1 Extermination . | . . . . Reinforcement 2 | . . . 2 Assault . | . . . . Garrison . | . . . . Intercept . | . . . . Searches Triggered . | . . . . Construction Impeded . | . . . . Haulers Reinforced . | . . . . Active Scanning Responses . | . . . . Cargo Convoy Interrupts . | . . . . Stealth | -11 -10 -10 -9 --------- Run | Yrd Mat Min Mat Distress Signals 3 | . 2 . 1 Communications Jammed . | . . . . Distress Signals . | . . . . Times Spotted 44 | 1 11 4 28 Peak Tracking Total 14 | 1 3 2 14 Tactical Retreats 1 | . . . 1 Traps | -11 -10 -10 -9 ------- Run | Yrd Mat Min Mat Traps Triggered 3 | . 2 . 1 Indirectly . | . . . . Trap Hack Attempts . | . . . . Triggered . | . . . . Disarmed . | . . . . Reprogrammed . | . . . . Reused . | . . . . Traps Extracted . | . . . . Installed . | . . . . Triggered . | . . . . Machines | -11 -10 -10 -9 ---------- Run | Yrd Mat Min Mat Machines Disabled 2 | . . 1 1 Max in Single Turn 1 | . . 1 1 Machines Repaired . | . . . . Machines Dismantled . | . . . . Machines Sabotaged . | . . . . Overloaded Fab Kills . | . . . . Hacking | -11 -10 -10 -9 --------- Run | Yrd Mat Min Mat Machines Accessed 4 | . 2 . 2 Terminals 2 | . . . 2 Fabricators . | . . . . Repair Stations 1 | . 1 . . Recycling Units 1 | . 1 . . Scanalyzers . | . . . . Garrison Access . | . . . . Total Hacks 9 | . 3 . 6 Successful 5 | . 2 . 3 Failed 4 | . 1 . 3 Catastrophic 1 | . . . 1 Database Lockouts . | . . . . Manual . | . . . . Terminals 6 | . . . 6 Fabricators . | . . . . Repair Stations 2 | . 2 . . Recycling Units 1 | . 1 . . Scanalyzers . | . . . . Garrison Access . | . . . . Terminal Hacks 3 | . . . 3 Record 2 | . . . 2 Alert Level 1 | . . . 1 Fabricator Hacks . | . . . . Repair Station Hacks 2 | . 2 . . Scan Component 1 | . 1 . . Repair 1 | . 1 . . Recycling Unit Hacks . | . . . . Scanalyzer . | . . . . Garrison Access Hacks . | . . . . Unauthorized Hacks . | . . . . Terminals . | . . . . Fabricators . | . . . . Repair Stations . | . . . . Recycling Units . | . . . . Scanalyzers . | . . . . Garrison Access . | . . . . Data Cores Recovered 1 | . 1 . . Used . | . . . . Hacking Detections 2 | . . . 2 Full Trace Events 1 | . . . 1 Feedback Events . | . . . . Feedback Blocked . | . . . . Robot Schematics Acquired . | . . . . Robots Built . | . . . . Authchips . | . . . . Time . | . . . . Total Robot Build Rating . | . . . . Part Schematics Acquired . | . . . . Parts Built . | . . . . Authchips . | . . . . Time . | . . . . Total Part Build Rating . | . . . . Parts Repaired 1 | . 1 . . Time 26 | . 26 . . Parts Recycled . | . . . . Recycled Matter . | . . . . Retrieved Matter . | . . . . Retrieved Components . | . . . . Parts Scanalyzed . | . . . . Part Schematics Acquired . | . . . . Parts Damaged . | . . . . Bothacking | -11 -10 -10 -9 ------------ Run | Yrd Mat Min Mat Used RIF Installer . | . . . . Robots Hacked . | . . . . Non-combat . | . . . . Combat . | . . . . Robot Hacks Applied . | . . . . Relay Couplers Released . | . . . . Fabnet Peak Effective % . | . . . . Robots Rewired . | . . . . Allies Hacked . | . . . . Hacks Repelled . | . . . . Allies | -11 -10 -10 -9 -------- Run | Yrd Mat Min Mat Total Allies . | . . . . Largest Group . | . . . . Highest-Rated Group . | . . . . Highest-Rated Ally . | . . . . Total Orders . | . . . . Ally Attacks . | . . . . Total Damage . | . . . . Kills . | . . . . Allies Corrupted . | . . . . Allies Melted . | . . . . Intel | -11 -10 -10 -9 ------- Run | Yrd Mat Min Mat Robot Analysis Total . | . . . . Derelict Logs Recovered 1 | . . 1 . Drone Launches . | . . . . Drone Recoveries . | . . . . Exploration | -11 -10 -10 -9 ------------- Run | Yrd Mat Min Mat Turns Passed 1442 | 172 597 356 317 Spaces Moved 1063 | 121 463 284 195 Core 68 | 37 . 11 20 Treads 1 | . . . 1 Legs 453 | 84 233 . 136 Wheels 541 | . 230 273 38 Hover . | . . . . Flight . | . . . . Fastest Speed 50 | 50 80 80 80 Average Speed 101 | 98 100 97 112 Slowest Speed 200 | 120 120 200 200 Overloaded Moves . | . . . . Propulsion Burnouts . | . . . . Robots Hopped . | . . . . Cave-ins Triggered . | . . . . Exploration Rate (%) 33 | 8 49 52 25 Regions Visited 3 Branch Regions 1 Pre-discovered Areas 2 | . . 2 . Known Exits Taken . | . . . . Unknown Exits Taken 3 | 1 1 1 . Scrap Searched . | . . . . Spaces Dug . | . . . . Terrain Destroyed 134 | . 59 66 9 Melee . | . . . . Projectile 2 | . . 2 . AOE 132 | . 59 64 9 Terrain Rammed . | . . . . Walls Destroyed . | . . . . Machines Disabled . | . . . . Actions | -11 -10 -10 -9 --------- Run | Yrd Mat Min Mat Total 1266 | 164 533 327 242 Wait 19 | 19 . . . Move 1060 | 120 462 283 195 Hop . | . . . . Pick Up 33 | 11 8 7 7 Fast Attach 1 | . 1 . . Attach 22 | 5 4 6 7 Detach 3 | . 2 1 . Swap 24 | 2 15 5 2 Drop 15 | 2 8 3 2 Fire 89 | 5 33 22 29 Melee . | . . . . Ram . | . . . . Kick . | . . . . Crush . | . . . . Escape Stasis . | . . . . Rewire . | . . . . Trap . | . . . . Miscellaneous . | . . . . Route ------- -11/Scrapyard -10/Materials -10/Mines -9/Materials (discovered 1 exit: [*Min]) History --------- Turn | Location | Event 2 | -11/Scrapyard | Met Revision 17 88 | -11/Scrapyard | Discovered new exit (range 8) 173 | -11/Scrapyard | Entered Materials 315 | -10/Materials | Build established: Mutant 641 | -10/Materials | Repaired Grenade Launcher 659 | -10/Materials | Discovered new exit (range 13) 770 | -10/Materials | Entered Mines 771 | -10/Mines | Learned location of Storage (-7) 786 | -10/Mines | Met a Derelict bent on vengeance 973 | -10/Mines | A weapon hastily lodged in a ceiling crevice suddenly fell to the ground 1015 | -10/Mines | Discovered new exit (range 7) 1060 | -10/Mines | Core integrity fell below 50% 1084 | -10/Mines | Lost 3 parts (1p1n1w) 1126 | -10/Mines | Entered Materials 1126 | -9/Materials | Evolved 2 slots: Power x1, Propulsion x1 1414 | -9/Materials | Core integrity fell below 50% 1422 | -9/Materials | Core integrity fell below 20% 1431 | -9/Materials | Discovered new exit (range 8) 1443 | -9/Materials | Destroyed by Y-45 Defender with Beam Rifle Last Messages --------------- Electrolysis Chamber disabled. R-06 Scavenger collects Aluminum Leg. Hvy. Assault Rifle destroyed. R-06 Scavenger collects Aluminum Leg. U-05 Engineer lays Concrete. Aluminum Leg destroyed. U-05 Engineer lays Concrete. ALERT: Hostiles spotted, dispatching reinforcements to Terminal M006. U-05 Engineer builds a Wall. Critical hit (Destroy). Imp. Aluminum Leg destroyed. U-05 Engineer builds a Wall. Sml. Laser destroyed. Particle Cannon destroyed. G-34 Mercenary destroyed. EXIT=FOUND W-16 Scout sends out distress signal. S-10 Pest destroyed. [Achievement: First Step to Greatness] Map ----- +----------------------------------------------------+ | ?????????????????????????????????????????????????? | | ?????????????????????????????????????????????????? | | ?????????????????????????????????????????????????? | | ?????????????????????????????????????????????????? | | ?????????????????????????????????????????????????? | | ?????????????????????????????????????????????????? | | ?????????????????????????????????????????????????? | | ?????????????????????????????????????????????????? | | ??????????????????????? ???????????????????????? | | ???????????????????????sY ???????????????????????? | | ??????????????????????# ss#??????????????????????? | | ??????????????????????# w #??????????????????????? | | ??????????????????????# #????????????????????? | | ??????????????????????# #????????????????????? | | ??????????????????????+ #????????????????????? | | ??????????????????????# #????????????????????? | | ???????????????????#### ##????????????#+###### | | ???????????????????#""" #????????????# | | ???????????????????#" #????????????+ | | ???????????????????#"! #????????????? | | ???????????????????#"" < #?????????????# | | ???????????????????#"! a #?????????????# | | ???????????????????#" #?????????????# | | ?????????????????????"" #?????????????? | | ???????????????######## % ################+ | | ???????????????# # @# """ # | | ???????????????# Y/ %Y% """ # == | | ???????????????# # #[ """ # == | | ???????????????# "T" # # # # | | ???????????????# """?# o # # " # * | | ??????????????# ?# # # T # * | | ??????????????######??# g ####+### " # [* = | | ??????????????????????#s #??# #?# = = * | | ??????????????????????#s g#??# ########/#### [% | | ?????????????????????# g### %! = | | ????????????????# | | ????????????????# | | ????????????????# | | ????????????????# ## ########## """ | | ????????????????#????################# """ | | ???????????????????????????# # """ | | ???????????????????????????# "" """ # | | ???????????????????????????# "" """ + | | ???????????????????????????# "T """ # ######### | | ???????????????????????????# "" # #???????? | | ???????????????????????????# "" # #???????? | | ???????????????????????????# # #???????? | | ???????????????????????????# %# #???????? | | ????????????????????################## #???????? | | ????????????????????# #??# % #???????? | +----------------------------------------------------+ Best States ------------- Heat Dissipation 39 Energy Generation 10 Energy Capacity 250 Matter Stores 300 Matter Capacity 300 Sight Range 18 Terrain Scan Density 10 Armor Coverage 450 Evasion (%) 55 Recoil Reduction 1 Item Schematics ----------------- None Robot Schematics ------------------ None Fabricated ------------ Nothing Alien Tech Used ----------------- None Achievements -------------- Crack Shot First Step to Greatness Part-time Mechanic Storm Trooper Uninvited Guest Challenges ------------ None Game ------ Seed ArcHeatGuard Manual? 0 Play Time 00:58:49 Cumulative 0.9 hours Start 2025.03.27 @ 19:12:12 End 2025.03.27 @ 21:48:48 Sessions 2 Manual Loads 0 Difficulty Rogue Special Mode None Game No. 1 Rogue 1 Adventurer 0 Explorer 0 Win Type - Total 0 Types 0/0/0/0/0/0/0/0/0 Lore% 0 Gallery% 1 Achievement% 1 Wizard Run 0 Options --------- Layout 1 ASCII 0 Keyboard 0 Movement Mouse Keybinds 0 Fullscreen 1 Font 24/Smallcaps Map View 50x35 Zoom Use 0% Tactical HUD 0 Map Filters NONE Filters NONE Steam 1 RUN: 8bd30673-d8dc-4420-bdb9-5661abf50155